[Event "SELL Games"]
[Site "Tartu, Estonia"]
[Date "2023.05.19"]
[Round "1.1"]
[White "Vanagaite, Giedre"]
[Black "Laurusas, Tomas"]
[Result "0-1"]
[TimeControl "15min + 10sec per move each"]
[WhiteTitle "WFM"]
[BlackTitle "GM"]
[WhiteFideId "12800546"]
[BlackFideId "12803731"]
[WhiteElo "1995"]
[BlackElo "2504"]

1. d4 {[%clk 00:15:19]} Nf6 {[%clk 00:15:18]} {[%emt 00:00:02]} 2. c4 {[%clk
00:15:28]} e6 {[%clk 00:15:27]} {[%emt 00:00:01]} 3. Nf3 {[%clk 00:15:34]}
{[%emt 00:00:04]} Bb4+ {[%clk 00:15:30]} {[%emt 00:00:07]} 4. Nbd2 {[%clk
00:15:31]} {[%emt 00:00:13]} O-O {[%clk 00:15:30]} {[%emt 00:00:09]} 5. Qc2
{[%clk 00:15:26]} {[%emt 00:00:16]} d6 {[%clk 00:15:17]} {[%emt 00:00:23]} 6.
e3 {[%clk 00:14:09]} {[%emt 00:01:27]} Re8 {[%clk 00:15:20]} {[%emt 00:00:07]}
7. Bd3 {[%clk 00:13:43]} {[%emt 00:00:36]} e5 {[%clk 00:15:24]} {[%emt
00:00:06]} 8. O-O {[%clk 00:13:47]} {[%emt 00:00:06]} Bxd2 {[%clk 00:15:03]}
{[%emt 00:00:32]} 9. Nxd2 {[%clk 00:13:51]} {[%emt 00:00:06]} exd4 {[%clk
00:15:07]} {[%emt 00:00:05]} 10. exd4 {[%clk 00:13:58]} {[%emt 00:00:03]} Nc6
{[%clk 00:15:16]} 11. Qc3 {[%clk 00:13:22]} {[%emt 00:00:46]} d5 {[%clk
00:15:09]} {[%emt 00:00:18]} 12. c5 {[%clk 00:13:15]} {[%emt 00:00:17]} Ne4
{[%clk 00:14:33]} {[%emt 00:00:45]} 13. Bxe4 {[%clk 00:12:33]} {[%emt
00:00:52]} dxe4 {[%clk 00:14:42]} {[%emt 00:00:02]} 14. Nb3 {[%clk 00:12:24]}
{[%emt 00:00:19]} a5 {[%clk 00:14:50]} {[%emt 00:00:02]} 15. Be3 {[%clk
00:12:17]} {[%emt 00:00:16]} Qd5 {[%clk 00:14:33]} {[%emt 00:00:26]} 16. Rfd1
{[%clk 00:07:48]} {[%emt 00:04:40]} Bg4 {[%clk 00:14:40]} {[%emt 00:00:03]} 17.
Rd2 {[%clk 00:07:57]} a4 {[%clk 00:13:49]} {[%emt 00:01:03]} 18. Nc1 {[%clk
00:08:05]} {[%emt 00:00:01]} Rad8 {[%clk 00:13:58]} 19. b3 {[%clk 00:07:37]}
{[%emt 00:00:39]} Re6 {[%clk 00:13:24]} {[%emt 00:00:45]} 20. Qc4 {[%clk
00:05:44]} {[%emt 00:02:04]} Qf5 {[%clk 00:11:39]} {[%emt 00:01:54]} 21. Ne2
{[%clk 00:04:23]} {[%emt 00:01:32]} Bxe2 {[%clk 00:11:32]} {[%emt 00:00:17]} 22.
Qxe2 {[%clk 00:04:31]} {[%emt 00:00:02]} Rg6 {[%clk 00:11:29]} {[%emt
00:00:14]} 23. Kh1 {[%clk 00:03:25]} {[%emt 00:01:15]} a3 {[%clk 00:11:37]}
{[%emt 00:00:01]} 24. Qb5 {[%clk 00:02:47]} {[%emt 00:00:49]} b6 {[%clk
00:09:46]} {[%emt 00:02:02]} 25. Rc1 {[%clk 00:02:14]} {[%emt 00:00:43]} h6
{[%clk 00:09:47]} {[%emt 00:00:09]} 26. Qc4 {[%clk 00:01:56]} {[%emt 00:00:28]}
Rd5 {[%clk 00:09:37]} {[%emt 00:00:19]} 27. cxb6 {[%clk 00:01:43]} {[%emt
00:00:23]} cxb6 {[%clk 00:09:34]} {[%emt 00:00:14]} 28. Qa4 {[%clk 00:01:52]}
Qg4 {[%clk 00:09:18]} {[%emt 00:00:25]} 29. Rg1 {[%clk 00:01:56]} {[%emt
00:00:06]} Rh5 {[%clk 00:09:26]} {[%emt 00:00:02]} 30. g3 {[%clk 00:01:33]}
{[%emt 00:00:33]} Qf3+ {[%clk 00:06:53]} {[%emt 00:02:43]} 31. Rg2 {[%clk
00:01:42]} {[%emt 00:00:02]} Rd5 {[%clk 00:07:01]} {[%emt 00:00:02]} 32. Qc4
{[%clk 00:01:31]} {[%emt 00:00:21]} Rgd6 {[%clk 00:07:04]} {[%emt 00:00:07]} 33.
h3 {[%clk 00:01:03]} {[%emt 00:00:38]} b5 {[%clk 00:06:19]} {[%emt 00:00:55]}
34. Qc3 {[%clk 00:00:54]} {[%emt 00:00:18]} Rh5 {[%clk 00:05:59]} {[%emt
00:00:31]} 35. h4 {[%clk 00:01:03]} {[%emt 00:00:01]} Rxh4+ {[%clk 00:06:01]}
{[%emt 00:00:08]} 36. gxh4 {[%clk 00:01:11]} {[%emt 00:00:02]} Rg6 {[%clk
00:06:10]} {[%emt 00:00:01]} 0-1

[Event "SELL Games"]
[Site "Tartu, Estonia"]
[Date "2023.05.19"]
[Round "1.2"]
[White "Stauskas, Lukas"]
[Black "Simkunaite, Gabija"]
[Result "1-0"]
[TimeControl "15min + 10sec per move each"]
[BlackTitle "WFM"]
[WhiteFideId "12808148"]
[BlackFideId "12808253"]
[WhiteElo "2296"]
[BlackElo "1964"]

1. b3 {[%clk 00:15:17]} {[%emt 00:00:02]} e5 {[%clk 00:15:14]} {[%emt
00:00:07]} 2. Bb2 {[%clk 00:15:25]} {[%emt 00:00:02]} Nc6 {[%clk 00:15:11]}
{[%emt 00:00:12]} 3. e3 {[%clk 00:15:33]} {[%emt 00:00:02]} g6 {[%clk
00:15:13]} {[%emt 00:00:08]} 4. Nf3 {[%clk 00:15:33]} {[%emt 00:00:10]} Bg7
{[%clk 00:15:21]} {[%emt 00:00:02]} 5. Bb5 {[%clk 00:15:31]} {[%emt 00:00:12]}
d6 {[%clk 00:15:28]} {[%emt 00:00:03]} 6. d4 {[%clk 00:15:27]} {[%emt
00:00:14]} e4 {[%clk 00:13:51]} {[%emt 00:01:47]} 7. Nfd2 {[%clk 00:15:33]}
{[%emt 00:00:05]} Qg5 {[%clk 00:12:51]} {[%emt 00:01:10]} 8. Bf1 {[%clk
00:14:28]} {[%emt 00:01:14]} Nf6 {[%clk 00:12:25]} {[%emt 00:00:36]} 9. Nc3
{[%clk 00:12:09]} {[%emt 00:02:30]} Qf5 {[%clk 00:08:28]} {[%emt 00:04:07]} 10.
h3 {[%clk 00:10:20]} {[%emt 00:01:58]} a6 {[%clk 00:07:29]} {[%emt 00:01:09]}
11. g4 {[%clk 00:09:59]} {[%emt 00:00:31]} Qg5 {[%clk 00:06:34]} {[%emt
00:01:05]} 12. Ndxe4 {[%clk 00:09:28]} {[%emt 00:00:41]} Nxe4 {[%clk 00:06:34]}
{[%emt 00:00:11]} 13. Nxe4 {[%clk 00:09:36]} {[%emt 00:00:02]} Qe7 {[%clk
00:06:43]} {[%emt 00:00:01]} 14. Ng3 {[%clk 00:08:24]} {[%emt 00:01:22]} Bd7
{[%clk 00:06:27]} {[%emt 00:00:25]} 15. Bg2 {[%clk 00:08:30]} {[%emt 00:00:04]}
O-O-O {[%clk 00:06:30]} {[%emt 00:00:08]} 16. Qd2 {[%clk 00:08:20]} {[%emt
00:00:20]} h5 {[%clk 00:06:05]} {[%emt 00:00:35]} 17. gxh5 {[%clk 00:08:07]}
{[%emt 00:00:22]} gxh5 {[%clk 00:06:13]} {[%emt 00:00:02]} 18. O-O-O {[%clk
00:07:51]} {[%emt 00:00:26]} h4 {[%clk 00:06:19]} {[%emt 00:00:05]} 19. Ne2
{[%clk 00:07:59]} {[%emt 00:00:01]} Bh6 {[%clk 00:05:34]} {[%emt 00:00:55]} 20.
Bxc6 {[%clk 00:07:13]} {[%emt 00:00:56]} bxc6 {[%clk 00:05:43]} {[%emt
00:00:02]} 21. d5 {[%clk 00:05:39]} {[%emt 00:01:45]} Rhg8 {[%clk 00:05:50]}
{[%emt 00:00:03]} 22. Qa5 {[%clk 00:04:35]} {[%emt 00:01:14]} Kb7 {[%clk
00:05:40]} {[%emt 00:00:20]} 23. Nd4 {[%clk 00:04:42]} {[%emt 00:00:03]} cxd5
{[%clk 00:04:52]} {[%emt 00:00:58]} 24. Qxd5+ {[%clk 00:04:50]} {[%emt
00:00:02]} c6 {[%clk 00:04:37]} {[%emt 00:00:25]} 25. Qh5 {[%clk 00:04:58]}
{[%emt 00:00:01]} Bg7 {[%clk 00:04:27]} {[%emt 00:00:20]} 26. Qf3 {[%clk
00:04:39]} {[%emt 00:00:29]} Kc7 {[%clk 00:04:12]} {[%emt 00:00:25]} 27. Ne2
{[%clk 00:03:46]} {[%emt 00:01:03]} Bxb2+ {[%clk 00:03:59]} {[%emt 00:00:23]}
28. Kxb2 {[%clk 00:03:55]} {[%emt 00:00:01]} a5 {[%clk 00:03:55]} {[%emt
00:00:14]} 29. a4 {[%clk 00:03:21]} {[%emt 00:00:44]} Rb8 {[%clk 00:03:55]}
{[%emt 00:00:10]} 30. Rhg1 {[%clk 00:03:16]} {[%emt 00:00:14]} Qe5+ {[%clk
00:03:33]} {[%emt 00:00:32]} 31. Ka2 {[%clk 00:03:00]} {[%emt 00:00:27]} Rxg1
{[%clk 00:03:29]} {[%emt 00:00:14]} 32. Rxg1 {[%clk 00:03:02]} {[%emt
00:00:08]} Be6 {[%clk 00:03:00]} {[%emt 00:00:39]} 33. Nd4 {[%clk 00:02:50]}
{[%emt 00:00:22]} Bd5 {[%clk 00:03:09]} 34. Qe2 {[%clk 00:02:17]} {[%emt
00:00:43]} Rb6 {[%clk 00:02:39]} {[%emt 00:00:40]} 35. Qd2 {[%clk 00:02:17]}
{[%emt 00:00:09]} Kb7 {[%clk 00:02:32]} {[%emt 00:00:18]} 36. Qxa5 {[%clk
00:02:01]} {[%emt 00:00:27]} Qh2 {[%clk 00:02:06]} {[%emt 00:00:36]} 37. Rg8
{[%clk 00:02:03]} {[%emt 00:00:08]} Ra6 {[%clk 00:02:05]} {[%emt 00:00:11]} 38.
Qd8 {[%clk 00:01:51]} {[%emt 00:00:21]} Bxb3+ {[%clk 00:02:00]} {[%emt
00:00:15]} 39. Kxb3 {[%clk 00:01:40]} {[%emt 00:00:21]} Ra7 {[%clk 00:02:03]}
{[%emt 00:00:07]} 40. Qd7+ {[%clk 00:01:35]} {[%emt 00:00:15]} 1-0

[Event "SELL Games"]
[Site "Tartu, Estonia"]
[Date "2023.05.19"]
[Round "1.3"]
[White "Sibajeva, Marija"]
[Black "Vardanyan, Aras"]
[Result "0-1"]
[TimeControl "15min + 10sec per move each"]
[WhiteTitle "WFM"]
[BlackTitle "FM"]
[WhiteFideId "12807583"]
[BlackFideId "12808792"]
[WhiteElo "1953"]
[BlackElo "2255"]

1. e4 {[%clk 00:15:20]} {[%emt 00:12:14]} c5 {[%clk 00:15:16]} {[%emt
00:00:31]} 2. Nf3 {[%clk 00:15:28]} {[%emt 00:00:01]} d6 {[%clk 00:15:24]}
{[%emt 00:00:03]} 3. d4 {[%clk 00:15:37]} cxd4 {[%clk 00:15:33]} {[%emt
00:00:01]} 4. Qxd4 {[%clk 00:15:46]} {[%emt 00:00:02]} a6 {[%clk 00:15:35]}
{[%emt 00:00:08]} 5. c4 {[%clk 00:15:54]} {[%emt 00:00:01]} Nc6 {[%clk
00:15:43]} {[%emt 00:00:03]} 6. Qd3 {[%clk 00:15:59]} {[%emt 00:00:03]} g6
{[%clk 00:15:51]} {[%emt 00:00:03]} 7. a3 {[%clk 00:16:04]} {[%emt 00:00:04]}
Bg7 {[%clk 00:15:58]} {[%emt 00:00:03]} 8. Nc3 {[%clk 00:16:09]} {[%emt
00:00:05]} Nf6 {[%clk 00:16:06]} {[%emt 00:00:03]} 9. Be2 {[%clk 00:16:10]}
{[%emt 00:00:09]} O-O {[%clk 00:16:09]} {[%emt 00:00:06]} 10. O-O {[%clk
00:16:18]} {[%emt 00:00:03]} Bg4 {[%clk 00:16:17]} {[%emt 00:00:02]} 11. Be3
{[%clk 00:15:29]} {[%emt 00:00:58]} Rc8 {[%clk 00:16:13]} {[%emt 00:00:16]} 12.
b3 {[%clk 00:14:07]} {[%emt 00:01:32]} Bxf3 {[%clk 00:14:53]} {[%emt 00:01:29]}
13. gxf3 {[%clk 00:13:33]} {[%emt 00:00:44]} b5 {[%clk 00:15:01]} {[%emt
00:00:01]} 14. cxb5 {[%clk 00:11:08]} {[%emt 00:02:35]} Ne5 {[%clk 00:15:09]}
{[%emt 00:00:02]} 15. Qd2 {[%clk 00:07:37]} {[%emt 00:03:42]} Rxc3 {[%clk
00:11:34]} {[%emt 00:03:46]} 16. Qxc3 {[%clk 00:07:46]} Nxe4 {[%clk 00:11:41]}
{[%emt 00:00:02]} 17. Qb4 {[%clk 00:07:23]} {[%emt 00:00:33]} Nc3 {[%clk
00:11:41]} {[%emt 00:00:10]} 18. Rae1 {[%clk 00:06:36]} {[%emt 00:00:54]} Nxe2+
{[%clk 00:09:10]} {[%emt 00:02:44]} 19. Rxe2 {[%clk 00:06:45]} Qa8 {[%clk
00:09:03]} {[%emt 00:00:16]} 20. Rd1 {[%clk 00:05:33]} {[%emt 00:01:22]} Nxf3+
{[%clk 00:08:49]} {[%emt 00:00:25]} 0-1

[Event "SELL Games"]
[Site "Tartu, Estonia"]
[Date "2023.05.19"]
[Round "1.4"]
[White "Vanagas, Tadas"]
[Black "Vaskevicius, Augustas"]
[Result "1-0"]
[TimeControl "15min + 10sec per move each"]
[WhiteFideId "12805467"]
[BlackFideId "12808008"]
[WhiteElo "2225"]
[BlackElo "1904"]

1. e4 {[%clk 00:15:17]} {[%emt 00:00:02]} c5 {[%clk 00:15:09]} {[%emt
00:00:12]} 2. Nf3 {[%clk 00:15:26]} {[%emt 00:00:01]} e6 {[%clk 00:15:13]}
{[%emt 00:00:07]} 3. d4 {[%clk 00:15:34]} {[%emt 00:00:01]} cxd4 {[%clk
00:15:21]} {[%emt 00:00:02]} 4. Nxd4 {[%clk 00:15:43]} {[%emt 00:00:01]} Qb6
{[%clk 00:15:04]} {[%emt 00:00:27]} 5. Nb3 {[%clk 00:15:49]} {[%emt 00:00:05]}
Qc7 {[%clk 00:15:13]} 6. Bd3 {[%clk 00:15:54]} {[%emt 00:00:04]} Nf6 {[%clk
00:15:18]} {[%emt 00:00:05]} 7. O-O {[%clk 00:15:39]} {[%emt 00:00:25]} d5
{[%clk 00:15:07]} {[%emt 00:00:21]} 8. exd5 {[%clk 00:15:48]} {[%emt 00:00:02]}
Nxd5 {[%clk 00:15:11]} {[%emt 00:00:05]} 9. c4 {[%clk 00:15:53]} {[%emt
00:00:05]} Nb4 {[%clk 00:13:58]} {[%emt 00:01:24]} 10. Nc3 {[%clk 00:15:59]}
{[%emt 00:00:04]} Nxd3 {[%clk 00:13:08]} {[%emt 00:01:00]} 11. Qxd3 {[%clk
00:16:07]} {[%emt 00:00:01]} a6 {[%clk 00:13:16]} {[%emt 00:00:03]} 12. Bg5
{[%clk 00:15:54]} {[%emt 00:00:23]} Bd6 {[%clk 00:11:25]} {[%emt 00:02:01]} 13.
Rad1 {[%clk 00:14:40]} {[%emt 00:01:23]} Be7 {[%clk 00:09:57]} {[%emt
00:01:37]} 14. Bxe7 {[%clk 00:14:21]} {[%emt 00:00:29]} Qxe7 {[%clk 00:09:39]}
{[%emt 00:00:27]} 15. Nd5 {[%clk 00:14:28]} {[%emt 00:00:04]} exd5 {[%clk
00:06:58]} {[%emt 00:02:51]} 16. Rfe1 {[%clk 00:14:35]} {[%emt 00:00:04]} Be6
{[%clk 00:07:07]} 17. cxd5 {[%clk 00:14:38]} {[%emt 00:00:07]} O-O {[%clk
00:07:03]} {[%emt 00:00:13]} 18. Nd4 {[%clk 00:09:57]} {[%emt 00:04:51]} Qc5
{[%clk 00:04:24]} {[%emt 00:02:49]} 19. dxe6 {[%clk 00:10:01]} {[%emt
00:00:07]} fxe6 {[%clk 00:04:33]} 20. Nxe6 {[%clk 00:08:15]} {[%emt 00:01:56]}
Qxf2+ {[%clk 00:04:15]} {[%emt 00:00:27]} 21. Kh1 {[%clk 00:08:24]} Re8 {[%clk
00:03:47]} {[%emt 00:00:39]} 22. Rf1 {[%clk 00:08:31]} {[%emt 00:00:03]} Qb6
{[%clk 00:03:12]} {[%emt 00:00:45]} 23. Ng5 {[%clk 00:08:33]} {[%emt 00:00:07]}
1-0

[Event "SELL Games"]
[Site "Tartu, Estonia"]
[Date "2023.05.19"]
[Round "1.5"]
[White "Mikelsons, Mikelis-Emils"]
[Black "Tvarijonas, Tomas"]
[Result "0-1"]
[TimeControl "15min + 10sec per move each"]
[BlackTitle "FM"]
[WhiteFideId "11607475"]
[BlackFideId "12805432"]
[WhiteElo "1877"]
[BlackElo "2181"]

1. d4 {[%clk 00:15:19]} d5 {[%clk 00:15:18]} {[%emt 00:00:02]} 2. c4 {[%clk
00:15:28]} {[%emt 00:00:02]} c6 {[%clk 00:15:27]} {[%emt 00:00:01]} 3. cxd5
{[%clk 00:15:36]} {[%emt 00:00:02]} cxd5 {[%clk 00:15:36]} 4. Bf4 {[%clk
00:15:44]} {[%emt 00:00:01]} Nf6 {[%clk 00:15:35]} {[%emt 00:00:11]} 5. Nc3
{[%clk 00:15:53]} {[%emt 00:00:02]} a6 {[%clk 00:15:35]} {[%emt 00:00:09]} 6.
e3 {[%clk 00:15:58]} {[%emt 00:00:05]} Nc6 {[%clk 00:15:38]} {[%emt 00:00:08]}
7. Bd3 {[%clk 00:15:58]} {[%emt 00:00:10]} Bg4 {[%clk 00:15:00]} {[%emt
00:00:47]} 8. Nge2 {[%clk 00:15:09]} {[%emt 00:00:59]} e6 {[%clk 00:14:42]}
{[%emt 00:00:28]} 9. f3 {[%clk 00:14:39]} {[%emt 00:00:39]} Bh5 {[%clk
00:14:48]} {[%emt 00:00:05]} 10. Rc1 {[%clk 00:14:26]} {[%emt 00:00:23]} Bd6
{[%clk 00:14:42]} {[%emt 00:00:16]} 11. O-O {[%clk 00:14:23]} {[%emt 00:00:13]}
O-O {[%clk 00:14:33]} {[%emt 00:00:19]} 12. Bxd6 {[%clk 00:14:03]} {[%emt
00:00:30]} Qxd6 {[%clk 00:14:40]} {[%emt 00:00:02]} 13. Nf4 {[%clk 00:13:40]}
{[%emt 00:00:33]} Bg6 {[%clk 00:14:18]} {[%emt 00:00:32]} 14. Nxg6 {[%clk
00:12:59]} {[%emt 00:00:51]} hxg6 {[%clk 00:14:25]} {[%emt 00:00:03]} 15. f4
{[%clk 00:13:02]} {[%emt 00:00:06]} b5 {[%clk 00:14:08]} {[%emt 00:00:27]} 16.
Rf3 {[%clk 00:12:28]} {[%emt 00:00:44]} Rfc8 {[%clk 00:13:31]} {[%emt
00:00:47]} 17. Rh3 {[%clk 00:09:31]} {[%emt 00:03:07]} Ne7 {[%clk 00:13:06]}
{[%emt 00:00:35]} 18. Qe1 {[%clk 00:07:51]} {[%emt 00:01:50]} b4 {[%clk
00:12:15]} {[%emt 00:01:02]} 19. Qh4 {[%clk 00:07:59]} {[%emt 00:00:02]} Kf8
{[%clk 00:12:01]} {[%emt 00:00:24]} 20. Ne2 {[%clk 00:07:44]} {[%emt 00:00:25]}
Rxc1+ {[%clk 00:11:30]} {[%emt 00:00:42]} 21. Nxc1 {[%clk 00:07:52]} {[%emt
00:00:01]} Qc6 {[%clk 00:11:06]} {[%emt 00:00:34]} 22. Nb3 {[%clk 00:07:55]}
{[%emt 00:00:07]} Qa4 {[%clk 00:10:29]} {[%emt 00:00:47]} 23. Nc5 {[%clk
00:07:03]} {[%emt 00:01:02]} Qd1+ {[%clk 00:10:24]} {[%emt 00:00:14]} 24. Bf1
{[%clk 00:07:11]} {[%emt 00:00:02]} Neg8 {[%clk 00:08:36]} {[%emt 00:01:58]} 25.
Qg5 {[%clk 00:03:18]} {[%emt 00:04:03]} Rc8 {[%clk 00:05:49]} {[%emt 00:02:58]}
26. Qe5 {[%clk 00:03:25]} {[%emt 00:00:03]} Ke7 {[%clk 00:05:51]} {[%emt
00:00:09]} 27. Nb7 {[%clk 00:01:00]} {[%emt 00:02:34]} Ne8 {[%clk 00:04:45]}
{[%emt 00:01:16]} 28. Rh7 {[%clk 00:00:19]} {[%emt 00:00:51]} Rc1 {[%clk
00:03:45]} {[%emt 00:01:10]} 29. Qg5+ {[%clk 00:00:22]} {[%emt 00:00:06]} f6
{[%clk 00:03:42]} {[%emt 00:00:14]} 0-1

[Event "SELL Games"]
[Site "Tartu, Estonia"]
[Date "2023.05.19"]
[Round "1.6"]
[White "Bekasovs, Rihards"]
[Black "Perminaite, Guoda"]
[Result "1-0"]
[TimeControl "15min + 10sec per move each"]
[WhiteFideId "11606029"]
[BlackFideId "12808784"]
[WhiteElo "2107"]
[BlackElo "1725"]

1. Nf3 {[%clk 00:15:17]} {[%emt 00:00:03]} d5 {[%clk 00:15:19]} {[%emt
00:00:02]} 2. c4 {[%clk 00:15:26]} e6 {[%clk 00:15:28]} {[%emt 00:00:01]} 3. g3
{[%clk 00:15:13]} {[%emt 00:00:23]} Nf6 {[%clk 00:15:33]} {[%emt 00:00:05]} 4.
Bg2 {[%clk 00:15:21]} {[%emt 00:00:02]} Be7 {[%clk 00:15:42]} {[%emt 00:00:01]}
5. d4 {[%clk 00:15:29]} {[%emt 00:00:02]} O-O {[%clk 00:15:48]} {[%emt
00:00:04]} 6. Qc2 {[%clk 00:15:37]} {[%emt 00:00:02]} dxc4 {[%clk 00:13:56]}
{[%emt 00:02:02]} 7. Qxc4 {[%clk 00:15:43]} {[%emt 00:00:05]} a6 {[%clk
00:13:09]} {[%emt 00:00:57]} 8. Bf4 {[%clk 00:15:51]} {[%emt 00:00:01]} Nd5
{[%clk 00:12:52]} {[%emt 00:00:27]} 9. O-O {[%clk 00:15:58]} {[%emt 00:00:03]}
Bd7 {[%clk 00:11:39]} {[%emt 00:01:23]} 10. Rc1 {[%clk 00:14:13]} {[%emt
00:01:55]} Nxf4 {[%clk 00:09:31]} {[%emt 00:02:18]} 11. gxf4 {[%clk 00:14:21]}
{[%emt 00:00:02]} Bc6 {[%clk 00:09:40]} {[%emt 00:00:02]} 12. e3 {[%clk
00:12:32]} {[%emt 00:01:58]} Bd6 {[%clk 00:07:47]} {[%emt 00:02:03]} 13. Nbd2
{[%clk 00:12:02]} {[%emt 00:00:39]} Nd7 {[%clk 00:07:29]} {[%emt 00:00:28]} 14.
Qc2 {[%clk 00:10:54]} {[%emt 00:01:18]} Bxf3 {[%clk 00:04:32]} {[%emt
00:03:07]} 15. Bxf3 {[%clk 00:08:27]} {[%emt 00:02:37]} c6 {[%clk 00:04:21]}
{[%emt 00:00:21]} 16. Rab1 {[%clk 00:08:21]} {[%emt 00:00:16]} Qh4 {[%clk
00:03:25]} {[%emt 00:01:06]} 17. Ne4 {[%clk 00:04:21]} {[%emt 00:04:09]} Be7
{[%clk 00:03:33]} {[%emt 00:00:02]} 18. b4 {[%clk 00:04:15]} {[%emt 00:00:17]}
Nf6 {[%clk 00:02:22]} {[%emt 00:01:21]} 19. Nxf6+ {[%clk 00:02:31]} {[%emt
00:01:54]} Bxf6 {[%clk 00:02:21]} {[%emt 00:00:11]} 20. a4 {[%clk 00:02:39]}
{[%emt 00:00:02]} Rad8 {[%clk 00:00:48]} {[%emt 00:01:43]} 21. b5 {[%clk
00:02:38]} {[%emt 00:00:12]} axb5 {[%clk 00:00:46]} {[%emt 00:00:12]} 22. axb5
{[%clk 00:02:47]} g5 {[%clk 00:00:24]} {[%emt 00:00:31]} 23. bxc6 {[%clk
00:01:55]} {[%emt 00:01:02]} 1-0